[Event "European Online Club-ch-H 2021"]
[Site "Online"]
[Date "2021.03.27"]
[Round "8.1"]
[White "Samani, Yamac"]
[Black "Vaisser, Anatoly"]
[Result "1-0"]
[ECO "C01"]
[WhiteElo "2246"]
[BlackElo "2501"]
[Annotator "ChessBase"]
[PlyCount "83"]
[EventDate "2021.03.27"]
[EventType "team-tourn"]
[EventCountry "NET"]
[SourceTitle "playchess.com"]
[Source "ChessBase"]
[SourceQuality "1"]
[TimeControl "900+5"]

1. e4 {[%emt 0:00:00]} e6 {[%emt 0:00:05]} 2. d4 {[%emt 0:00:37]} d5 {[%emt 0:00:04]} 3. exd5 {[%emt 0:00:01]} exd5 {[%emt 0:00:03]} 4. Nf3 {[%emt 0:00:02]} Nc6 {[%emt 0:00:02]} 5. Bd3 {[%emt 0:00:07]} Bd6 {[%emt 0:00:06]} 6. O-O {[%emt 0:00:05]} Nge7 {[%emt 0:00:06]} 7. c3 {[%emt 0:00:10]} Bg4 {[%emt 0:00:33]} 8. Re1 {[%emt 0:00:07]} Qd7 {[%emt 0:00:14]} 9. Nbd2 {[%emt 0:00:09]} O-O-O {[%emt 0:00:12]} 10. b4 {[%emt 0:00:20]} Ng6 {[%emt 0:00:18]} 11. b5 {[%emt 0:01:11]} Nce7 {[%emt 0:00:12]} 12. Bf1 {[%emt 0:00:23]} Nh4 {[%emt 0:01:58]} 13. Be2 {[%emt 0:01:25]} Nxf3+ {[%emt 0:00:27]} 14. Bxf3 {[%emt 0:00:22]} Bxf3 {[%emt 0:00:11]} 15. Qxf3 {[%emt 0:00:10]} Qxb5 {[%emt 0:00:55]} 16. Qxf7 {[%emt 0:00:48]} Rdf8 {[%emt 0:00:10]} 17. Qe6+ {[%emt 0:00:08]} Kb8 {[%emt 0:00:07]} 18. c4 {[%emt 0:01:04]} dxc4 {[%emt 0:00:16]} 19. Nxc4 {[%emt 0:00:36]} Rf6 {[%emt 0:00:41]} 20. Qe2 {[%emt 0:00:35]} Nc8 {[%emt 0:01:39]} 21. Be3 {[%emt 0:00:28]} b6 {[%emt 0:00:41]} 22. a4 {[%emt 0:00:53]} Qd5 {[%emt 0:00:07]} 23. Rab1 {[%emt 0:01:45]} Rg6 {[%emt 0:00:14]} 24. g3 {[%emt 0:00:04]} h5 {[%emt 0:00:27]} 25. Rb5 {[%emt 0:00:03]} Qe4 {[%emt 0:00:29]} 26. Rxh5 {[%emt 0:00:39]} Rxh5 {[%emt 0:01:29]} 27. Qxh5 {[%emt 0:00:02]} Rh6 {[%emt 0:00:02]} 28. Qe2 {[%emt 0:00:47]} Rh8 {[%emt 0:00:47]} 29. f3 {[%emt 0:00:25]} Qd5 {[%emt 0:00:12]} 30. Rc1 {[%emt 0:00:38]} Rf8 {[%emt 0:00:33]} 31. f4 {[%emt 0:00:58]} Re8 {[%emt 0:00:38]} 32. Ne5 {[%emt 0:00:03]} Ne7 {[%emt 0:00:06]} 33. Qg2 {[%emt 0:00:16]} Qxg2+ {[%emt 0:00:20]} 34. Kxg2 {[%emt 0:00:03]} Nd5 {[%emt 0:00:02]} 35. Kf3 {[%emt 0:00:09]} Kb7 {[%emt 0:00:23]} 36. h4 {[%emt 0:00:02]} Ka6 {[%emt 0:00:23]} 37. Bd2 {[%emt 0:00:07]} c5 {[%emt 0:00:10]} 38. dxc5 {[%emt 0:00:08]} Bxc5 {[%emt 0:00:03]} 39. h5 {[%emt 0:00:19]} Ba3 {[%emt 0:00:27]} 40. Rc6 {[%emt 0:00:11]} Bb2 {[%emt 0:00:14]} 41. Nd3 {[%emt 0:00:22]} Bf6 {[%emt 0:00:09]} 42. Nc5# {[%emt 0:00:06]} 1-0

[Event "European Online Club-ch-H 2021"]
[Site "Online"]
[Date "2021.03.27"]
[Round "8.2"]
[White "Roux, Olivier"]
[Black "Agdelen, Huseyin Can"]
[Result "0-1"]
[ECO "B53"]
[WhiteElo "2156"]
[BlackElo "2206"]
[Annotator "NA"]
[PlyCount "98"]
[EventDate "2021.03.27"]
[EventType "team-tourn"]
[EventCountry "NET"]
[SourceTitle "playchess.com"]
[Source "ChessBase"]
[SourceQuality "1"]
[TimeControl "900+5"]

1. e4 {[%emt 0:00:00]} c5 {[%emt 0:00:05]} 2. Nf3 {[%emt 0:00:02]} d6 {[%emt 0:00:02]} 3. d4 {[%emt 0:00:02]} cxd4 {[%emt 0:00:02]} 4. Qxd4 {[%emt 0:00:02]} Nf6 {[%emt 0:00:28]} 5. Bb5+ {[%emt 0:00:10]} Bd7 {[%emt 0:00:17]} 6. Bxd7+ {[%emt 0:00:03]} Qxd7 {[%emt 0:00:01]} 7. O-O {[%emt 0:00:05]} Nc6 {[%emt 0:00:04]} 8. Qd3 {[%emt 0:00:09]} Rc8 {[%emt 0:00:14]} 9. c4 {[%emt 0:00:08]} Qe6 {[%emt 0:00:31]} 10. Nbd2 {[%emt 0:01:03]} g6 {[%emt 0:00:27]} 11. Qb3 {[%emt 0:01:09]} b6 {[%emt 0:01:41]} 12. Ng5 {[%emt 0:00:16]} Qg4 {[%emt 0:00:16]} 13. Ndf3 {[%emt 0:00:07]} h6 {[%emt 0:00:05]} 14. Nh3 {[%emt 0:00:52]} Nxe4 {[%emt 0:00:19]} 15. Nd2 {[%emt 0:00:24]} Nc5 {[%emt 0:00:12]} 16. Qc3 {[%emt 0:00:09]} Qd4 {[%emt 0:00:02]} 17. Qf3 {[%emt 0:00:14]} Bg7 {[%emt 0:00:33]} 18. Rb1 {[%emt 0:00:29]} Ne5 {[%emt 0:00:30]} 19. Qa3 {[%emt 0:00:09]} O-O {[%emt 0:00:34]} 20. Qxa7 {[%emt 0:00:12]} g5 {[%emt 0:05:33]} 21. Nb3 {[%emt 0:00:22]} Qe4 {[%emt 0:00:10]} 22. Be3 {[%emt 0:00:10]} Ra8 {[%emt 0:00:30]} 23. Qxb6 {[%emt 0:00:52]} Rfb8 {[%emt 0:00:05]} 24. Nxc5 {[%emt 0:00:02]} dxc5 {[%emt 0:00:14]} 25. Qxc5 {[%emt 0:00:05]} Nxc4 {[%emt 0:00:13]} 26. b4 {[%emt 0:02:19]} Rc8 {[%emt 0:00:22]} 27. Nxg5 {[%emt 0:00:25]} hxg5 {[%emt 0:00:13]} 28. Qxg5 {[%emt 0:00:03]} Nxe3 {[%emt 0:00:41]} 29. Qxe3 {[%emt 0:00:40]} Qxe3 {[%emt 0:00:09]} 30. fxe3 {[%emt 0:00:01]} Rxa2 {[%emt 0:00:04]} 31. Rf2 {[%emt 0:00:02]} Ra3 {[%emt 0:00:02]} 32. Re2 {[%emt 0:00:03]} Bh6 {[%emt 0:00:05]} 33. Kf2 {[%emt 0:00:07]} Rcc3 {[%emt 0:00:04]} 34. e4 {[%emt 0:00:03]} Be3+ {[%emt 0:00:09]} 35. Kf1 {[%emt 0:00:05]} Bd4 {[%emt 0:00:19]} 36. b5 {[%emt 0:00:14]} Rcb3 {[%emt 0:00:04]} 37. Rd1 {[%emt 0:00:09]} e5 {[%emt 0:00:02]} 38. g3 {[%emt 0:00:06]} Rxb5 {[%emt 0:00:03]} 39. Kg2 {[%emt 0:00:02]} Kg7 {[%emt 0:00:05]} 40. Rf1 {[%emt 0:00:03]} Rbb3 {[%emt 0:00:03]} 41. Rd1 {[%emt 0:00:14]} Kg6 {[%emt 0:00:08]} 42. Rdd2 {[%emt 0:00:20]} Re3 {[%emt 0:00:06]} 43. Rc2 {[%emt 0:00:13]} Kg5 {[%emt 0:00:15]} 44. Rf2 {[%emt 0:00:08]} Ra7 {[%emt 0:00:43]} 45. Rc6 {[%emt 0:01:24]} Rxe4 {[%emt 0:00:38]} 46. Rf1 {[%emt 0:01:21]} Ra2+ {[%emt 0:00:13]} 47. Kh3 {[%emt 0:00:44]} Ree2 {[%emt 0:00:09]} 48. Rh1 {[%emt 0:00:02]} Bg1 {[%emt 0:00:07]} 49. g4 {[%emt 0:00:16]} Re3# {[%emt 0:00:03]} 0-1

[Event "European Online Club-ch-H 2021"]
[Site "Online"]
[Date "2021.03.27"]
[Round "8.3"]
[White "Sertbay, Huseyin"]
[Black "Kirszenberg, Marc"]
[Result "1/2-1/2"]
[ECO "D10"]
[WhiteElo "2101"]
[BlackElo "2130"]
[Annotator "NA"]
[PlyCount "96"]
[EventDate "2021.03.27"]
[EventType "team-tourn"]
[EventCountry "NET"]
[SourceTitle "playchess.com"]
[Source "ChessBase"]
[SourceQuality "1"]
[TimeControl "900+5"]

1. d4 {[%emt 0:00:00]} d5 {[%emt 0:00:02]} 2. c4 {[%emt 0:00:02]} c6 {[%emt 0:00:01]} 3. cxd5 {[%emt 0:00:01]} cxd5 {[%emt 0:00:01]} 4. Bg5 {[%emt 0:00:01]} h6 {[%emt 0:00:02]} 5. Bh4 {[%emt 0:00:01]} Qb6 {[%emt 0:00:02]} 6. Nc3 {[%emt 0:00:02]} e5 {[%emt 0:00:11]} 7. Nxd5 {[%emt 0:01:44]} Bb4+ {[%emt 0:00:13]} 8. Nxb4 {[%emt 0:00:40]} Qxb4+ {[%emt 0:00:02]} 9. Qd2 {[%emt 0:00:00]} Qxd2+ {[%emt 0:00:02]} 10. Kxd2 {[%emt 0:00:01]} exd4 {[%emt 0:00:01]} 11. Nf3 {[%emt 0:00:03]} Nc6 {[%emt 0:00:03]} 12. b4 {[%emt 0:00:40]} Nxb4 {[%emt 0:00:50]} 13. Nxd4 {[%emt 0:00:02]} Ne7 {[%emt 0:00:08]} 14. e4 {[%emt 0:00:13]} Nbc6 {[%emt 0:00:19]} 15. Bb5 {[%emt 0:00:06]} Bd7 {[%emt 0:00:11]} 16. Nxc6 {[%emt 0:02:15]} Bxc6 {[%emt 0:00:46]} 17. Bxc6+ {[%emt 0:00:03]} Nxc6 {[%emt 0:00:14]} 18. Rab1 {[%emt 0:00:04]} g5 {[%emt 0:00:13]} 19. Bg3 {[%emt 0:00:02]} O-O-O+ {[%emt 0:00:03]} 20. Ke3 {[%emt 0:00:15]} Rhe8 {[%emt 0:00:06]} 21. Rhd1 {[%emt 0:00:19]} Rxd1 {[%emt 0:00:04]} 22. Rxd1 {[%emt 0:00:01]} f5 {[%emt 0:00:04]} 23. Bd6 {[%emt 0:01:51]} Rxe4+ {[%emt 0:00:10]} 24. Kf3 {[%emt 0:00:02]} Rd4 {[%emt 0:00:20]} 25. Rxd4 {[%emt 0:00:09]} Nxd4+ {[%emt 0:00:02]} 26. Ke3 {[%emt 0:00:11]} Ne6 {[%emt 0:00:18]} 27. f3 {[%emt 0:01:17]} Kd7 {[%emt 0:00:02]} 28. Ba3 {[%emt 0:00:02]} b5 {[%emt 0:00:05]} 29. g4 {[%emt 0:00:02]} fxg4 {[%emt 0:00:09]} 30. fxg4 {[%emt 0:00:01]} a5 {[%emt 0:00:03]} 31. Ke4 {[%emt 0:00:05]} b4 {[%emt 0:00:13]} 32. Bb2 {[%emt 0:00:03]} Ke7 {[%emt 0:00:19]} 33. Kd5 {[%emt 0:00:38]} Nf4+ {[%emt 0:00:04]} 34. Kc4 {[%emt 0:00:02]} Ke6 {[%emt 0:00:38]} 35. Bg7 {[%emt 0:00:20]} h5 {[%emt 0:00:07]} 36. gxh5 {[%emt 0:00:01]} Nxh5 {[%emt 0:00:02]} 37. Bd4 {[%emt 0:00:01]} Nf4 {[%emt 0:00:11]} 38. Kb5 {[%emt 0:00:09]} Kd5 {[%emt 0:00:11]} 39. Bf6 {[%emt 0:00:03]} Ne6 {[%emt 0:00:08]} 40. Kxa5 {[%emt 0:00:05]} Kc4 {[%emt 0:00:02]} 41. Be7 {[%emt 0:00:08]} b3 {[%emt 0:00:01]} 42. axb3+ {[%emt 0:00:04]} Kxb3 {[%emt 0:00:02]} 43. Bxg5 {[%emt 0:00:41]} Nxg5 {[%emt 0:00:04]} 44. h4 {[%emt 0:00:01]} Kc4 {[%emt 0:01:03]} 45. hxg5 {[%emt 0:00:36]} Kd5 {[%emt 0:00:01]} 46. g6 {[%emt 0:00:02]} Ke6 {[%emt 0:00:01]} 47. g7 {[%emt 0:00:01]} Kf7 {[%emt 0:00:02]} 48. g8=Q+ {[%emt 0:00:03]} Kxg8 {[%emt 0:00:01]} 1/2-1/2

[Event "European Online Club-ch-H 2021"]
[Site "Online"]
[Date "2021.03.27"]
[Round "8.4"]
[White "Coupet, Pascal"]
[Black "Atasoy, Ata"]
[Result "1-0"]
[ECO "B22"]
[WhiteElo "2233"]
[BlackElo "1636"]
[Annotator "NA"]
[PlyCount "57"]
[EventDate "2021.03.27"]
[EventType "team-tourn"]
[EventCountry "NET"]
[SourceTitle "playchess.com"]
[Source "ChessBase"]
[SourceQuality "1"]
[TimeControl "900+5"]

1. e4 {[%emt 0:00:00]} c5 {[%emt 0:00:02]} 2. Nf3 {[%emt 0:00:05]} e6 {[%emt 0:00:01]} 3. c3 {[%emt 0:00:01]} d5 {[%emt 0:00:02]} 4. exd5 {[%emt 0:00:00]} Qxd5 {[%emt 0:00:03]} 5. d4 {[%emt 0:00:03]} Nf6 {[%emt 0:00:11]} 6. Na3 {[%emt 0:00:10]} Be7 {[%emt 0:00:30]} 7. Be3 {[%emt 0:00:15]} cxd4 {[%emt 0:00:03]} 8. Nb5 {[%emt 0:00:03]} Na6 {[%emt 0:00:16]} 9. Bxd4 {[%emt 0:00:58]} O-O {[%emt 0:01:11]} 10. Be2 {[%emt 0:01:23]} Rd8 {[%emt 0:00:30]} 11. O-O {[%emt 0:00:13]} Bd7 {[%emt 0:00:17]} 12. a4 {[%emt 0:00:24]} Bxb5 {[%emt 0:01:24]} 13. axb5 {[%emt 0:00:26]} Nc5 {[%emt 0:00:06]} 14. Ne5 {[%emt 0:00:45]} Nb3 {[%emt 0:00:59]} 15. Bc4 {[%emt 0:00:48]} Qxe5 {[%emt 0:00:49]} 16. Bxe5 {[%emt 0:00:09]} Rxd1 {[%emt 0:00:02]} 17. Raxd1 {[%emt 0:00:01]} Nc5 {[%emt 0:00:11]} 18. Ra1 {[%emt 0:00:40]} Nfe4 {[%emt 0:00:06]} 19. Rfd1 {[%emt 0:00:10]} f6 {[%emt 0:00:16]} 20. Bd4 {[%emt 0:00:09]} Kf7 {[%emt 0:00:02]} 21. b4 {[%emt 0:00:21]} Nd7 {[%emt 0:00:24]} 22. Re1 {[%emt 0:00:20]} Rc8 {[%emt 0:00:16]} 23. Bxe6+ {[%emt 0:00:10]} Kxe6 {[%emt 0:00:00]} 24. Rxe4+ {[%emt 0:00:04]} Ne5 {[%emt 0:00:14]} 25. f4 {[%emt 0:00:09]} Kd5 {[%emt 0:00:02]} 26. Rae1 {[%emt 0:00:14]} Nd3 {[%emt 0:00:23]} 27. Rxe7 {[%emt 0:00:06]} Nxe1 {[%emt 0:00:03]} 28. Rxe1 {[%emt 0:00:02]} Kc4 {[%emt 0:00:05]} 29. Re7 {[%emt 0:00:10]} 1-0

[Event "European Online Club-ch-H 2021"]
[Site "Online"]
[Date "2021.03.27"]
[Round "8.5"]
[White "Kuzubov, Yuriy"]
[Black "Manik, Mikulas"]
[Result "1/2-1/2"]
[ECO "A48"]
[WhiteElo "2642"]
[BlackElo "2353"]
[Annotator "ChessBase"]
[PlyCount "96"]
[EventDate "2021.03.27"]
[EventType "team-tourn"]
[EventCountry "NET"]
[SourceTitle "playchess.com"]
[Source "ChessBase"]
[SourceQuality "1"]
[TimeControl "900+5"]

1. d4 {[%emt 0:00:00]} Nf6 {[%emt 0:00:04]} 2. Nf3 {[%emt 0:00:03]} g6 {[%emt 0:00:03]} 3. Nbd2 {[%emt 0:00:02]} c5 {[%emt 0:00:08]} 4. dxc5 {[%emt 0:00:02]} Qa5 {[%emt 0:00:02]} 5. a3 {[%emt 0:00:02]} Qxc5 {[%emt 0:00:02]} 6. b4 {[%emt 0:00:01]} Qc7 {[%emt 0:00:02]} 7. Bb2 {[%emt 0:00:02]} d6 {[%emt 0:00:14]} 8. g3 {[%emt 0:00:35]} Bg7 {[%emt 0:00:04]} 9. Bg2 {[%emt 0:00:02]} b6 {[%emt 0:00:12]} 10. O-O {[%emt 0:00:03]} Bb7 {[%emt 0:00:02]} 11. c4 {[%emt 0:00:21]} Nbd7 {[%emt 0:00:02]} 12. e4 {[%emt 0:00:05]} O-O {[%emt 0:00:05]} 13. Qe2 {[%emt 0:00:28]} Rfd8 {[%emt 0:00:18]} 14. Rfd1 {[%emt 0:01:18]} Rac8 {[%emt 0:00:13]} 15. Ne1 {[%emt 0:00:48]} Qb8 {[%emt 0:01:59]} 16. Nd3 {[%emt 0:00:18]} e6 {[%emt 0:00:57]} 17. Rac1 {[%emt 0:00:12]} Re8 {[%emt 0:00:15]} 18. f4 {[%emt 0:00:14]} e5 {[%emt 0:00:50]} 19. f5 {[%emt 0:02:55]} gxf5 {[%emt 0:00:09]} 20. exf5 {[%emt 0:00:03]} e4 {[%emt 0:00:13]} 21. Nf4 {[%emt 0:00:06]} Ne5 {[%emt 0:01:26]} 22. Bxe5 {[%emt 0:02:33]} Rxe5 {[%emt 0:00:09]} 23. Nf1 {[%emt 0:00:03]} e3 {[%emt 0:01:14]} 24. Bxb7 {[%emt 0:00:12]} Qxb7 {[%emt 0:00:03]} 25. Rxd6 {[%emt 0:00:25]} Rxf5 {[%emt 0:00:15]} 26. Qxe3 {[%emt 0:00:48]} Re8 {[%emt 0:00:15]} 27. Qd3 {[%emt 0:00:08]} Rfe5 {[%emt 0:00:51]} 28. Rd8 {[%emt 0:00:16]} Ne4 {[%emt 0:00:28]} 29. Rxe8+ {[%emt 0:00:24]} Rxe8 {[%emt 0:00:05]} 30. Re1 {[%emt 0:00:07]} Qa8 {[%emt 0:00:25]} 31. Nd5 {[%emt 0:00:15]} Ng5 {[%emt 0:00:04]} 32. Rxe8+ {[%emt 0:00:13]} Qxe8 {[%emt 0:00:02]} 33. Qe3 {[%emt 0:00:38]} Ne6 {[%emt 0:00:10]} 34. Kg2 {[%emt 0:00:09]} h6 {[%emt 0:00:09]} 35. Qe4 {[%emt 0:00:07]} Qa4 {[%emt 0:00:05]} 36. Ne7+ {[%emt 0:01:28]} Kh8 {[%emt 0:00:04]} 37. Qd3 {[%emt 0:00:51]} Bb2 {[%emt 0:00:25]} 38. Qd2 {[%emt 0:00:58]} Bg7 {[%emt 0:00:04]} 39. Nf5 {[%emt 0:00:07]} Qxa3 {[%emt 0:00:06]} 40. b5 {[%emt 0:00:02]} Qc5 {[%emt 0:01:14]} 41. N1e3 {[%emt 0:00:06]} Qe5 {[%emt 0:00:10]} 42. Nd6 {[%emt 0:00:28]} Kg8 {[%emt 0:00:17]} 43. Nd5 {[%emt 0:00:12]} Bf8 {[%emt 0:00:27]} 44. Ne8 {[%emt 0:00:14]} Qe4+ {[%emt 0:00:03]} 45. Kh3 {[%emt 0:00:07]} Qf5+ {[%emt 0:00:14]} 46. Kg2 {[%emt 0:00:06]} Qe4+ {[%emt 0:00:03]} 47. Kh3 {[%emt 0:00:03]} Qf5+ {[%emt 0:00:03]} 48. Kg2 {[%emt 0:00:13]} Qe4+ {[%emt 0:00:03]} 1/2-1/2

[Event "European Online Club-ch-H 2021"]
[Site "Online"]
[Date "2021.03.27"]
[Round "8.6"]
[White "Danada, Tomas"]
[Black "Baklan, Vladimir"]
[Result "0-1"]
[ECO "E61"]
[WhiteElo "2321"]
[BlackElo "2587"]
[Annotator "ChessBase"]
[PlyCount "68"]
[EventDate "2021.03.27"]
[EventType "team-tourn"]
[EventCountry "NET"]
[SourceTitle "playchess.com"]
[Source "ChessBase"]
[SourceQuality "1"]
[TimeControl "900+5"]

1. d4 {[%emt 0:00:00]} d6 {[%emt 0:00:04]} 2. Nf3 {[%emt 0:00:06]} Nf6 {[%emt 0:00:03]} 3. c4 {[%emt 0:00:03]} g6 {[%emt 0:00:02]} 4. Nc3 {[%emt 0:00:01]} Bf5 {[%emt 0:00:02]} 5. h3 {[%emt 0:00:25]} Bg7 {[%emt 0:00:04]} 6. g4 {[%emt 0:00:06]} Bd7 {[%emt 0:00:01]} 7. Bg2 {[%emt 0:00:02]} O-O {[%emt 0:00:06]} 8. e4 {[%emt 0:00:26]} c5 {[%emt 0:00:46]} 9. d5 {[%emt 0:00:27]} e5 {[%emt 0:00:37]} 10. Be3 {[%emt 0:00:14]} Na6 {[%emt 0:00:22]} 11. Nd2 {[%emt 0:01:59]} Nc7 {[%emt 0:00:27]} 12. a4 {[%emt 0:00:30]} Na6 {[%emt 0:00:07]} 13. Bf3 {[%emt 0:01:08]} Nb4 {[%emt 0:00:10]} 14. Be2 {[%emt 0:00:10]} Ne8 {[%emt 0:00:25]} 15. h4 {[%emt 0:00:18]} f5 {[%emt 0:00:21]} 16. gxf5 {[%emt 0:00:06]} gxf5 {[%emt 0:00:02]} 17. exf5 {[%emt 0:00:02]} Bxf5 {[%emt 0:00:07]} 18. Nde4 {[%emt 0:00:02]} Nf6 {[%emt 0:01:01]} 19. Bf3 {[%emt 0:00:43]} Qd7 {[%emt 0:00:27]} 20. Rg1 {[%emt 0:01:48]} Kh8 {[%emt 0:00:05]} 21. h5 {[%emt 0:01:06]} Nxe4 {[%emt 0:01:09]} 22. Bxe4 {[%emt 0:00:08]} Bf6 {[%emt 0:00:37]} 23. Qe2 {[%emt 0:03:30]} Rg8 {[%emt 0:00:47]} 24. Kd2 {[%emt 0:00:07]} Bxe4 {[%emt 0:00:55]} 25. Nxe4 {[%emt 0:00:02]} Qf5 {[%emt 0:00:29]} 26. f3 {[%emt 0:01:05]} Be7 {[%emt 0:00:07]} 27. h6 {[%emt 0:00:15]} Raf8 {[%emt 0:00:10]} 28. Rxg8+ {[%emt 0:00:07]} Rxg8 {[%emt 0:00:03]} 29. Rg1 {[%emt 0:00:05]} Rxg1 {[%emt 0:01:39]} 30. Bxg1 {[%emt 0:00:02]} Qh3 {[%emt 0:00:02]} 31. Be3 {[%emt 0:00:16]} Bf8 {[%emt 0:00:06]} 32. Ng5 {[%emt 0:00:27]} Qh1 {[%emt 0:00:59]} 33. Qf2 {[%emt 0:00:57]} Qb1 {[%emt 0:00:15]} 34. Kc3 {[%emt 0:00:50]} Qd3# {[%emt 0:00:07]} 0-1

[Event "European Online Club-ch-H 2021"]
[Site "Online"]
[Date "2021.03.27"]
[Round "8.7"]
[White "Brodsky, Michail"]
[Black "Zambor, Norbert"]
[Result "1-0"]
[ECO "E90"]
[WhiteElo "2524"]
[BlackElo "2260"]
[Annotator "ChessBase"]
[PlyCount "77"]
[EventDate "2021.03.27"]
[EventType "team-tourn"]
[EventCountry "NET"]
[SourceTitle "playchess.com"]
[Source "ChessBase"]
[SourceQuality "1"]
[TimeControl "900+5"]

1. d4 {[%emt 0:00:00]} Nf6 {[%emt 0:00:16]} 2. c4 {[%emt 0:00:06]} e6 {[%emt 0:00:14]} 3. Nc3 {[%emt 0:00:02]} c5 {[%emt 0:00:22]} 4. d5 {[%emt 0:00:03]} g6 {[%emt 0:00:13]} 5. e4 {[%emt 0:00:03]} Bg7 {[%emt 0:00:47]} 6. Bd3 {[%emt 0:00:04]} O-O {[%emt 0:00:03]} 7. Nf3 {[%emt 0:00:02]} Re8 {[%emt 0:00:41]} 8. O-O {[%emt 0:00:10]} d6 {[%emt 0:00:16]} 9. h3 {[%emt 0:00:06]} Na6 {[%emt 0:00:12]} 10. Bg5 {[%emt 0:00:43]} Nc7 {[%emt 0:00:44]} 11. Qd2 {[%emt 0:00:06]} Rb8 {[%emt 0:00:32]} 12. a3 {[%emt 0:01:06]} exd5 {[%emt 0:00:39]} 13. exd5 {[%emt 0:00:30]} a6 {[%emt 0:01:01]} 14. b4 {[%emt 0:00:17]} b5 {[%emt 0:03:45]} 15. Rab1 {[%emt 0:00:05]} cxb4 {[%emt 0:00:12]} 16. Rxb4 {[%emt 0:00:52]} a5 {[%emt 0:00:28]} 17. Rbb1 {[%emt 0:00:46]} b4 {[%emt 0:00:13]} 18. axb4 {[%emt 0:00:06]} axb4 {[%emt 0:00:12]} 19. Na2 {[%emt 0:00:11]} b3 {[%emt 0:00:13]} 20. Nb4 {[%emt 0:00:09]} Bd7 {[%emt 0:00:45]} 21. Nd4 {[%emt 0:01:47]} Rb6 {[%emt 0:02:23]} 22. Rxb3 {[%emt 0:00:14]} Qa8 {[%emt 0:00:38]} 23. Be3 {[%emt 0:01:00]} Rbb8 {[%emt 0:00:40]} 24. Rfb1 {[%emt 0:00:45]} Qa5 {[%emt 0:01:07]} 25. Qc1 {[%emt 0:00:38]} Ra8 {[%emt 0:00:15]} 26. Ndc6 {[%emt 0:00:29]} Qa4 {[%emt 0:00:06]} 27. Bd4 {[%emt 0:00:19]} Nh5 {[%emt 0:00:07]} 28. Bxg7 {[%emt 0:00:22]} Nxg7 {[%emt 0:00:02]} 29. R3b2 {[%emt 0:00:24]} Bf5 {[%emt 0:00:08]} 30. Ra2 {[%emt 0:00:36]} Qxa2 {[%emt 0:00:05]} 31. Nxa2 {[%emt 0:00:02]} Rxa2 {[%emt 0:00:06]} 32. Nb4 {[%emt 0:00:11]} Raa8 {[%emt 0:00:05]} 33. g4 {[%emt 0:00:09]} Bxd3 {[%emt 0:00:04]} 34. Nxd3 {[%emt 0:00:02]} Na6 {[%emt 0:00:03]} 35. Ra1 {[%emt 0:00:10]} h5 {[%emt 0:00:06]} 36. Qf4 {[%emt 0:00:18]} Nc5 {[%emt 0:00:08]} 37. Rxa8 {[%emt 0:00:03]} Nxd3 {[%emt 0:00:04]} 38. Rxe8+ {[%emt 0:00:04]} Nxe8 {[%emt 0:00:02]} 39. Qe3 {[%emt 0:00:03]} 1-0

[Event "European Online Club-ch-H 2021"]
[Site "Online"]
[Date "2021.03.27"]
[Round "8.9"]
[White "Banusz, Tamas"]
[Black "Kazakov, Mikhail"]
[Result "1/2-1/2"]
[ECO "A11"]
[WhiteElo "2631"]
[BlackElo "2516"]
[Annotator "ChessBase"]
[PlyCount "145"]
[EventDate "2021.03.27"]
[EventType "team-tourn"]
[EventCountry "NET"]
[SourceTitle "playchess.com"]
[Source "ChessBase"]
[SourceQuality "1"]
[TimeControl "900+5"]

1. Nf3 {[%emt 0:00:00]} Nf6 {[%emt 0:00:04]} 2. g3 {[%emt 0:00:03]} d5 {[%emt 0:00:02]} 3. Bg2 {[%emt 0:00:02]} c6 {[%emt 0:00:01]} 4. O-O {[%emt 0:00:01]} Bf5 {[%emt 0:00:07]} 5. c4 {[%emt 0:00:08]} e6 {[%emt 0:00:01]} 6. Qb3 {[%emt 0:00:02]} Qb6 {[%emt 0:00:05]} 7. d3 {[%emt 0:00:03]} Nbd7 {[%emt 0:00:05]} 8. cxd5 {[%emt 0:00:02]} Qxb3 {[%emt 0:01:29]} 9. axb3 {[%emt 0:00:02]} exd5 {[%emt 0:00:04]} 10. Bd2 {[%emt 0:00:04]} Bc5 {[%emt 0:00:17]} 11. b4 {[%emt 0:00:19]} Bb6 {[%emt 0:00:06]} 12. Bc3 {[%emt 0:00:04]} O-O {[%emt 0:00:07]} 13. Nbd2 {[%emt 0:00:31]} Rfe8 {[%emt 0:00:08]} 14. Rfe1 {[%emt 0:00:24]} h6 {[%emt 0:00:16]} 15. Nd4 {[%emt 0:00:28]} Bg6 {[%emt 0:00:09]} 16. Bh3 {[%emt 0:00:53]} Nf8 {[%emt 0:00:44]} 17. N2b3 {[%emt 0:00:59]} Ne6 {[%emt 0:00:53]} 18. Bg2 {[%emt 0:01:36]} Nxd4 {[%emt 0:00:09]} 19. Nxd4 {[%emt 0:00:30]} a6 {[%emt 0:00:17]} 20. Nb3 {[%emt 0:00:45]} Nd7 {[%emt 0:00:25]} 21. Bh3 {[%emt 0:00:16]} Nf8 {[%emt 0:00:23]} 22. Nc5 {[%emt 0:00:15]} Bxc5 {[%emt 0:00:29]} 23. bxc5 {[%emt 0:00:03]} Ne6 {[%emt 0:00:22]} 24. d4 {[%emt 0:00:28]} Nc7 {[%emt 0:00:23]} 25. f3 {[%emt 0:00:40]} Nb5 {[%emt 0:00:10]} 26. Kf2 {[%emt 0:00:04]} Re7 {[%emt 0:00:09]} 27. e3 {[%emt 0:00:19]} Rae8 {[%emt 0:00:13]} 28. Bd2 {[%emt 0:00:08]} Bd3 {[%emt 0:00:19]} 29. Bg2 {[%emt 0:00:50]} Kf8 {[%emt 0:00:22]} 30. Ba5 {[%emt 0:00:37]} g5 {[%emt 0:00:56]} 31. Rad1 {[%emt 0:00:20]} Bc2 {[%emt 0:00:07]} 32. Rd2 {[%emt 0:00:08]} Bg6 {[%emt 0:00:02]} 33. g4 {[%emt 0:00:47]} f5 {[%emt 0:00:34]} 34. gxf5 {[%emt 0:00:05]} Bxf5 {[%emt 0:00:03]} 35. h3 {[%emt 0:00:25]} Kg7 {[%emt 0:00:17]} 36. Rdd1 {[%emt 0:00:08]} Bc2 {[%emt 0:00:11]} 37. Rc1 {[%emt 0:00:07]} Bg6 {[%emt 0:00:03]} 38. Bd2 {[%emt 0:00:15]} Bd3 {[%emt 0:00:18]} 39. Kg3 {[%emt 0:00:28]} Kg6 {[%emt 0:00:29]} 40. h4 {[%emt 0:00:15]} Nc7 {[%emt 0:02:24]} 41. hxg5 {[%emt 0:02:03]} hxg5 {[%emt 0:00:04]} 42. Rh1 {[%emt 0:00:07]} Ne6 {[%emt 0:00:19]} 43. Rc3 {[%emt 0:00:14]} Bb5 {[%emt 0:00:20]} 44. Ra3 {[%emt 0:00:18]} Ng7 {[%emt 0:00:19]} 45. e4 {[%emt 0:00:05]} dxe4 {[%emt 0:01:30]} 46. fxe4 {[%emt 0:00:00]} Rxe4 {[%emt 0:00:06]} 47. Bxe4+ {[%emt 0:00:01]} Rxe4 {[%emt 0:00:02]} 48. Be3 {[%emt 0:00:02]} Nf5+ {[%emt 0:00:14]} 49. Kf2 {[%emt 0:00:02]} Nxe3 {[%emt 0:00:16]} 50. Rxe3 {[%emt 0:00:02]} Rxd4 {[%emt 0:00:02]} 51. Kg3 {[%emt 0:00:24]} Rb4 {[%emt 0:00:30]} 52. b3 {[%emt 0:00:10]} Rd4 {[%emt 0:00:16]} 53. Rhe1 {[%emt 0:00:14]} Rd5 {[%emt 0:00:04]} 54. Re5 {[%emt 0:00:13]} Rd3+ {[%emt 0:00:44]} 55. R1e3 {[%emt 0:00:10]} Rxe3+ {[%emt 0:00:27]} 56. Rxe3 {[%emt 0:00:00]} Kf6 {[%emt 0:00:01]} 57. Kg4 {[%emt 0:00:10]} a5 {[%emt 0:00:08]} 58. Re8 {[%emt 0:00:28]} a4 {[%emt 0:00:06]} 59. bxa4 {[%emt 0:00:13]} Bxa4 {[%emt 0:00:03]} 60. Re1 {[%emt 0:00:35]} Bb5 {[%emt 0:00:08]} 61. Re4 {[%emt 0:00:16]} Bd3 {[%emt 0:00:10]} 62. Rb4 {[%emt 0:00:07]} Be2+ {[%emt 0:00:14]} 63. Kg3 {[%emt 0:00:10]} Ke5 {[%emt 0:00:13]} 64. Rb2 {[%emt 0:00:16]} Bb5 {[%emt 0:00:04]} 65. Rd2 {[%emt 0:00:03]} Bc4 {[%emt 0:00:08]} 66. Kg4 {[%emt 0:00:09]} Kf6 {[%emt 0:00:02]} 67. Rd4 {[%emt 0:00:17]} Be6+ {[%emt 0:00:04]} 68. Kg3 {[%emt 0:00:02]} Ke5 {[%emt 0:00:02]} 69. Rd1 {[%emt 0:00:08]} Bf5 {[%emt 0:00:05]} 70. Rd2 {[%emt 0:00:06]} Be6 {[%emt 0:00:04]} 71. Rd1 {[%emt 0:00:06]} Bf5 {[%emt 0:00:03]} 72. Rd8 {[%emt 0:00:04]} Be6 {[%emt 0:00:06]} 73. Rd1 {[%emt 0:00:03]} 1/2-1/2